fUSD/lending_fUSD_20241013
["ID","MTS","AMOUNT","RATE_DAILY","PERIOD"]
[340203011,1728834638401,-8986.56,0.00010959,2]
[340203013,1728834638412,-882.92,0.00010959,2]
[340203015,1728834638423,-526.5746173,0.00010973,2]
[340203017,1728834638433,-502.19950538,0.00010973,2]
[340203019,1728834638444,-500.0,0.00010973,2]
[340203022,1728834638456,-181.297,0.00010973,2]
[340203025,1728834638468,-152.97,0.00010973,2]
[340203027,1728834638478,-150.0,0.00010976,2]
[340203029,1728834638488,-1000.0,0.00010995,2]
[340203031,1728834638498,-1000.0,0.00010995,2]
[340203033,1728834638509,-1020.0,0.00010995,2]
[340203035,1728834638519,-1000.0,0.00010995,2]
[340203037,1728834638530,-1000.0,0.00010995,2]
[340203040,1728834638541,-1233.84656008,0.00010999,2]
[340203042,1728834638551,-627.0,0.00011,2]
[340203044,1728834638562,-108750.04726204,0.00011,2]
[340203046,1728834638572,-295447.83347724,0.00011,2]
[340203048,1728834638583,-2664771.27648961,0.00011,2]
[340203050,1728834638594,-202.0,0.00011,2]
[340203052,1728834638605,-202.0,0.00011,2]
[340203054,1728834638616,-202.0,0.00011,2]
[340203057,1728834638627,-202.0,0.00011,2]
[340203059,1728834638639,-202.0,0.00011,2]
[340203061,1728834638650,-202.0,0.00011,2]
[340203063,1728834638660,-202.0,0.00011,2]
[340203066,1728834638671,-202.0,0.00011,2]
[340203068,1728834638682,-202.0,0.00011,2]
[340203070,1728834638694,-202.0,0.00011,2]
[340203072,1728834638706,-160.286192,0.00011,2]
[340203073,1728834638717,-184.801092,0.00011,2]
[340203076,1728834638729,-4034.0,0.00011,2]
[340203078,1728834638740,-3734748.81649071,0.00011,2]
[340203080,1728834638754,-450419.51737424,0.00011,2]
[340203082,1728834638764,-328.0,0.00011,2]
[340203084,1728834638775,-328.0,0.00011,2]
[340203086,1728834638786,-328.0,0.00011,2]
[340203088,1728834638797,-328.0,0.00011,2]
[340203090,1728834638807,-328.0,0.00011,2]
[340203092,1728834638818,-328.0,0.00011,2]
[340203094,1728834638830,-328.0,0.00011,2]
[340203096,1728834638840,-328.0,0.00011,2]
[340203097,1728834638851,-328.0,0.00011,2]
[340203100,1728834638862,-328.0,0.00011,2]
[340203102,1728834638873,-328.0,0.00011,2]
[340203104,1728834638884,-328.0,0.00011,2]
[340203106,1728834638895,-328.0,0.00011,2]
[340203108,1728834638907,-328.0,0.00011,2]
[340203110,1728834638918,-500.0,0.00011,2]
[340203112,1728834638929,-384366.25496102,0.00011,2]
[340203114,1728834638942,-2144.37888385,0.00011,2]
[340203117,1728834638956,-1000.0,0.00011,2]
[340203119,1728834638970,-477.85701832,0.00011,2]
[340203122,1728834638984,-360.53268373,0.00011,2]
[340203124,1728834638997,-628.01,0.00011,2]
[340203141,1728834639175,-450.0,0.00011,2]
[340203144,1728834639195,-301.66931011,0.00011,2]
[340203146,1728834639208,-291.87393651,0.00011,2]
[340203148,1728834639221,-572.13343351,0.00011,2]
[340203151,1728834639239,-10903.20915914,0.00011,2]
[340203153,1728834639250,-3013.58673412,0.00011,2]
[340203199,1728834639847,-2588.90000003,0.00011,2]
[340203200,1728834639905,-292.98349225,0.00011,2]
[340203201,1728834639917,-935.233546,0.00011,2]
[340203202,1728834640071,-734.44608772,0.00011,2]
[340203203,1728834640082,-1012.94672163,0.00011,2]
[340203204,1728834640129,-773.4029184,0.00011,2]
[340203205,1728834640140,-1344.25561625,0.00011,2]
[340203206,1728834640189,-1891.89,0.00011,2]
[340203207,1728834640200,-842.40632519,0.00011,2]
[340203208,1728834640212,-623.09648562,0.00011,2]
[340203238,1728834642984,-62001.77445859,0.00011,2]
[340203239,1728834643042,-32515.62364667,0.00011,2]
[340203240,1728834643099,-30759.60404708,0.00011,2]
[340203241,1728834643156,-3527.56003472,0.00011,2]
[340203242,1728834643167,-654.3670804,0.00011,2]
[340203243,1728834643180,-278.84646037,0.00011,2]
[340203244,1728834643192,-3230.70846362,0.00011,2]
[340203245,1728834643204,-363.3058,0.00011,2]
[340203248,1728834645785,-2500.0,0.000108,2]
[340203249,1728834645794,-6502.72690644,0.00011,2]
[340203250,1728834645893,-260.95564108,0.00011,2]
[340203251,1728834645905,-1283.15974259,0.00011,2]
[340203252,1728834646008,-1870.6502338,0.00011,2]
[340203253,1728834646063,-12460.8,0.00011,2]
[340203254,1728834646119,-1555106.01527884,0.00011,2]
[340203255,1728834650071,-450.0,0.00010682,2]
[340203256,1728834884549,430.4,0.00010143,2]
[340203257,1728835008362,230.62,8.251e-05,2]
[340203258,1728835389765,11550.0,0.00010146,2]
[340203259,1728835390724,286.19724393,0.00010172,2]
[340203260,1728835390746,369.48275607,0.00010172,2]
[340203262,1728835589575,239.4,8.263e-05,2]
[340203266,1728835818365,150.0,0.00010182,2]
[340203267,1728835818387,150.0,0.00010182,2]
[340203268,1728835818407,150.0,0.00010182,2]
[340203269,1728835818427,50.0,0.00010182,2]
[340203272,1728835832004,-662.54834617,0.00010427,2]
[340203273,1728835832016,-987.45165383,0.00010427,2]
[340203274,1728835832026,-239.4,0.00010527,2]
[340203275,1728835832185,-182.24,0.00010638,2]
[340203276,1728835832195,-150.0,0.00010799,2]
[340203277,1728835832205,-300.0,0.00010799,2]
[340203278,1728835832214,-7102.61197523,0.000108,2]
[340203279,1728835832226,-26514.24582477,0.000108,2]
[340203280,1728835832235,-35423.12903002,0.000108,2]
[340203281,1728835832250,-60787.43126998,0.000108,2]
[340203282,1728835832259,-2357.80715962,0.000109,2]
[340203283,1728835832268,-6548.2728,0.000109,2]
[340203284,1728835832278,-497.2572,0.000109,2]
[340203285,1728835832287,-5621.675,0.000109,2]
[340203286,1728835832296,-222.72667164,0.000109,2]
[340203287,1728835832305,-181.87747034,0.000109,2]
[340203288,1728835832315,-7697.56824459,0.000109,2]
[340203289,1728835832324,-552.57584407,0.000109,2]
[340203290,1728835832333,-388.58,0.00010959,2]
[340203291,1728835832342,-159.73,0.00010959,2]
[340203292,1728835832352,-7285.03,0.00010959,2]
[340203293,1728835832361,-250.0,0.00010959,2]
[340203294,1728835832373,-1425.88,0.00010959,2]
[340203295,1728835832384,-389.61191699,0.00010973,2]
[340203296,1728835832393,-152.97,0.00010973,2]
[340203297,1728835832402,-9210.71880257,0.00010999,2]
[340203298,1728835832411,-225.35451009,0.00010999,2]
[340203299,1728835832421,-566.0,0.00011,2]
[340203300,1728835832430,-4090.66386375,0.00011,2]
[340203301,1728835832442,-311.975,0.00011,2]
[340203302,1728835832453,-818.82444517,0.00011,2]
[340203303,1728835832464,-867.99467088,0.00011,2]
[340203304,1728835832475,-664.14928762,0.00011,2]
[340203305,1728835832486,-509.22801043,0.00011,2]
[340203306,1728835832498,-5905.61785603,0.00011,2]
[340203307,1728835832510,-5122.22480104,0.00011,2]
[340203308,1728835832521,-947.8638113,0.00011,2]
[340203309,1728835832532,-1366.00042613,0.00011,2]
[340203310,1728835832543,-17804.33994674,0.00011,2]
[340203311,1728835832561,-500.0,0.00011,2]
[340203312,1728835832577,-4390.21581886,0.00011,2]
[340203313,1728835832588,-1571.8,0.00011,2]
[340203314,1728835832599,-679.71,0.00011,2]
[340203315,1728835832610,-711.6,0.00011,2]
[340203316,1728835832622,-20924.53590503,0.00011,2]
[340203317,1728835832633,-2019.02952842,0.00011,2]
[340203318,1728835838110,-500.0,0.00010973,2]
[340203319,1728835838120,-509.0,0.00011,2]
[340203320,1728835838131,-4965.7917284,0.00011,2]
[340203321,1728835838142,-1720.75393469,0.00011,2]
[340203322,1728835838154,-1922.01009,0.00011,2]
[340203323,1728835838166,-705.09885338,0.00011,2]
[340203324,1728835838271,-974100.90008995,0.00011,2]
[340203325,1728835838283,-3843.61361225,0.00011,2]
[340203326,1728835838295,-988.63282662,0.00011,2]
[340203327,1728835838466,-6896.70624383,0.00011,2]
[340203328,1728835838478,-19099.21,0.00011,2]
[340203329,1728835838489,-6057.23386798,0.00011,2]
[340203330,1728835838500,-13271.56862149,0.00011,2]
[340203331,1728835838510,-24654.16122351,0.00011,2]
[340203332,1728835838521,-22243.24876,0.00011,2]
[340203333,1728835838532,-4498.0,0.00011,2]
[340203334,1728835838544,-523.16180576,0.00011,2]
[340203335,1728835838555,-44927.75358361,0.00011,2]
[340203336,1728835838566,-745.15400241,0.00011,2]
[340203337,1728835838581,-3353.94450525,0.00011,2]
[340203338,1728835838592,-667.24633407,0.00011,2]
[340203339,1728835838658,-150.0,0.00011,2]
[340203340,1728835838669,-11446.87764089,0.00011,2]
[340203341,1728835838680,-24977.3687205,0.00011,2]
[340203342,1728835838691,-459.01463883,0.00011,2]
[340203343,1728835838702,-800.67916805,0.00011,2]
[340203344,1728835838713,-1152.06794487,0.00011,2]
[340203345,1728835838725,-2146.17360397,0.00011,2]
[340203346,1728835838736,-12796.0661975,0.00011,2]
[340203347,1728835838747,-24003.67265126,0.00011,2]
[340203348,1728835838761,-632.6228459,0.00011,2]
[340203349,1728835838772,-562.98582958,0.00011,2]
[340203350,1728835838783,-794.86802,0.00011,2]
[340203351,1728835838794,-7438.13842549,0.00011,2]
[340203352,1728835838806,-1233.64916876,0.00011,2]
[340203353,1728835838817,-31499.12898451,0.00011,2]
[340203354,1728835838828,-6310.47022922,0.00011,2]
[340203355,1728835838840,-135717.78159402,0.00011,2]
[340203356,1728835838851,-2014.51930002,0.00011,2]
[340203358,1728835840055,-300.060222,0.00011,2]
[340203359,1728835840112,-295.69770592,0.00011,2]
[340203360,1728835840123,-316.37510169,0.00011,2]
[340203361,1728835840167,-1089.08190439,0.00011,2]
[340203362,1728835840222,-1562.78016588,0.00011,2]
[340203363,1728835840233,-406.289999,0.00011,2]
[340203426,1728835843174,-2183.825,0.00011,2]
[340203427,1728835843228,-32789.9182493,0.00011,2]
[340203428,1728835843240,-62053.80518589,0.00011,2]
[340203429,1728835843389,-6949.9344931,0.00011,2]
[340203455,1728835846018,-1264.7968584,0.00011,2]
[340203456,1728835846125,-6223.57488,0.00011,2]
[340203457,1728835850988,-150.0,0.00010644,2]
[340203458,1728835969184,-450.0,0.00010406,2]
[340203459,1728835983039,21259.14,0.00010223,2]
[340203460,1728836040593,171.23,0.00010193,2]
[340203461,1728836117524,158.61,0.0001017,2]
[340203462,1728836177860,150.0,0.00010148,2]
[340203463,1728836182472,550.0,0.0001,2]
[340203464,1728836198634,259.04,8.252e-05,2]
[340203465,1728836291650,1634.27,0.00010123,2]
[340203466,1728836344897,176.06,0.00010107,2]
[340203467,1728836458007,614.55,0.00010079,2]
[340203469,1728836617438,3018.35,0.00010098,2]
[340203470,1728836712216,265.7,8.219e-05,2]
[340203472,1728836756374,297.87044918,6.94e-05,2]
[340203474,1728836800344,250.0,0.00010115,2]
[340203475,1728836871660,185.67,0.0001011,2]
[340203492,1728836983915,150.0,0.00010151,2]
[340203493,1728836983936,150.0,0.00010151,2]
[340203494,1728836983956,150.0,0.00010151,2]
[340203495,1728836983976,58.36,0.00010151,2]
[340203503,1728837032122,-265.7,0.00010482,2]
[340203504,1728837032132,-150.28592689,0.00010567,2]
[340203505,1728837032178,-4993.424,0.00010567,2]
[340203506,1728837032189,-1800.0,0.00010567,2]
[340203507,1728837032200,-1170.29007311,0.00010567,2]
[340203508,1728837032210,-36.6,0.00010644,2]
[340203509,1728837032219,-500.0,0.00010873,2]
[340203510,1728837032227,-3376.10992689,0.0001088,2]
[340203511,1728837032238,-1955.20216614,0.0001088,2]
[340203512,1728837032249,-8658.86606519,0.0001088,2]
[340203513,1728837032258,-709.21020301,0.0001089,2]
[340203514,1728837032267,-442.53,0.00010898,2]
[340203515,1728837032276,-447.91,0.00010898,2]
[340203516,1728837032285,-150.0,0.00010898,2]
[340203517,1728837032294,-8693.2957,0.00010899,2]
[340203518,1728837032303,-36355.07862702,0.00010899,2]
[340203519,1728837032314,-2069.31652377,0.00010899,2]
[340203520,1728837032325,-18407.69834921,0.00010899,2]
[340203521,1728837032335,-798.17,0.00010899,2]
[340203522,1728837032347,-217.0,0.00010899,2]
[340203523,1728837032356,-150.99,0.00010899,2]
[340203524,1728837032365,-1884.99,0.00010899,2]
[340203525,1728837032374,-7819.67,0.00010899,2]
[340203526,1728837032383,-499.99,0.00010899,2]
[340203527,1728837032394,-2460.01962622,0.00010899,2]
[340203528,1728837032403,-2460.01962615,0.00010899,2]
[340203529,1728837032411,-477.73166852,0.00010899,2]
[340203530,1728837032423,-679.08311489,0.00010899,2]
[340203531,1728837032434,-1303.20484274,0.00010899,2]
[340203532,1728837032443,-2460.01962615,0.00010899,2]
[340203533,1728837032452,-186.53696181,0.00010899,2]
[340203534,1728837032463,-528.67243227,0.00010899,2]
[340203535,1728837032475,-1744.81023207,0.00010899,2]
[340203536,1728837032484,-2460.01962615,0.00010899,2]
[340203537,1728837032493,-2460.01962615,0.00010899,2]
[340203538,1728837032502,-433.37786146,0.00010899,2]
[340203539,1728837032521,-2026.64176469,0.00010899,2]
[340203540,1728837032530,-387.43491815,0.00010899,2]
[340203541,1728837032541,-857.30470671,0.00010899,2]
[340203542,1728837032552,-1215.28000129,0.00010899,2]
[340203543,1728837032561,-299.99,0.00010899,2]
[340203544,1728837032570,-28716.7276,0.000109,2]
[340203545,1728837032579,-150.99,0.000109,2]
[340203546,1728837032588,-18978.003,0.000109,2]
[340203547,1728837032597,-2500.0,0.000109,2]
[340203548,1728837032606,-1000.0,0.000109,2]
[340203549,1728837032615,-342.1906,0.000109,2]
[340203550,1728837032624,-163.91404132,0.000109,2]
[340203551,1728837032633,-2460.01962615,0.000109,2]
[340203552,1728837032642,-13838.75962179,0.000109,2]
[340203553,1728837032651,-7500.0,0.000109,2]
[340203554,1728837032660,-2344.36816632,0.000109,2]
[340203555,1728837032669,-1951.5920661,0.000109,2]
[340203556,1728837032678,-191.29310577,0.000109,2]
[340203557,1728837032687,-734.49523728,0.000109,2]
[340203558,1728837032696,-15395.13648916,0.000109,2]
[340203559,1728837032705,-342.11,0.00010959,2]
[340203560,1728837032714,-152.47,0.00010959,2]
[340203561,1728837032723,-250.0,0.00010959,2]
[340203562,1728837032732,-150.0,0.00010959,2]
[340203563,1728837032741,-1500.0,0.00010959,2]
[340203564,1728837032750,-155.5,0.00010959,2]
[340203565,1728837032760,-233.74,0.00010959,2]
[340203566,1728837032768,-194.78,0.00010959,2]
[340203567,1728837032778,-162.32,0.00010959,2]
[340203568,1728837032787,-811.62,0.00010959,2]
[340203569,1728837032795,-500.0,0.00010973,2]
[340203570,1728837032804,-168.91,0.00010973,2]
[340203571,1728837032813,-605.71729314,0.00010999,2]
[340203572,1728837032822,-506.39279116,0.00010999,2]
[340203573,1728837032831,-500.0,0.00010999,2]
[340203574,1728837032840,-386.73108336,0.00010999,2]
[340203575,1728837032849,-500.0,0.00010999,2]
[340203576,1728837032858,-503.60393062,0.00010999,2]
[340203577,1728837032867,-427.14727838,0.00010999,2]
[340203578,1728837032876,-500.0,0.00010999,2]
[340203579,1728837032885,-500.0,0.00010999,2]
[340203580,1728837032895,-500.0,0.00010999,2]
[340203581,1728837032904,-481.67204763,0.00010999,2]
[340203582,1728837032913,-500.0,0.00010999,2]
[340203583,1728837032922,-500.0,0.00010999,2]
[340203584,1728837032931,-500.0,0.00010999,2]
[340203585,1728837032941,-500.0,0.00010999,2]
[340203586,1728837032950,-500.0,0.00010999,2]
[340203587,1728837032958,-410.54239632,0.00010999,2]
[340203588,1728837032967,-114453.45943915,0.00011,2]
[340203589,1728837032977,-175570.91691195,0.00011,2]
[340203590,1728837032988,-926.43635877,0.00011,2]
[340203591,1728837033000,-3576.06686084,0.00011,2]
[340203592,1728837033014,-256.41264469,0.00011,2]
[340203593,1728837033025,-6817.17459968,0.00011,2]
[340203594,1728837033036,-2300.0,0.00011,2]
[340203595,1728837033046,-7914.48,0.00011,2]
[340203596,1728837033057,-854.80884198,0.00011,2]
[340203597,1728837033068,-726.67746112,0.00011,2]
[340203601,1728837038339,-4455.8989701,0.00011,2]
[340203606,1728837038448,-347873.28094837,0.00011,2]
[340203607,1728837038458,-269.0,0.00011,2]
[340203608,1728837038468,-296426.45219028,0.00011,2]
[340203609,1728837038504,-5146.02669942,0.00011,2]
[340203610,1728837038516,-5753.12993344,0.00011,2]
[340203611,1728837038527,-5364.2574944,0.00011,2]
[340203612,1728837038618,-575.69748729,0.00011,2]
[340203613,1728837038629,-484.0774728,0.00011,2]
[340203614,1728837038642,-404.23910663,0.00011,2]
[340203615,1728837038654,-4207.4695537,0.00011,2]
[340203616,1728837038664,-2000.0,0.00011,2]
[340203639,1728837039309,-358868.00424929,0.00011,2]
[340203640,1728837039324,-141000.0,0.00011,2]
[340203641,1728837039335,-821.05998187,0.00011,2]
[340203643,1728837040254,-16975.58111324,0.00011,2]
[340203644,1728837040265,-593.2704582,0.00011,2]
[340203645,1728837040277,-10792.30363648,0.00011,2]
[340203646,1728837040316,-145561.86969388,0.00011,2]
[340203647,1728837040327,-1184.16627041,0.00011,2]
[340203648,1728837040338,-818.83192566,0.00011,2]
[340203649,1728837040353,-491.72,0.00011,2]
[340203650,1728837040364,-309.3972734,0.00011,2]
[340203651,1728837040375,-625.621724,0.00011,2]
[340203652,1728837040391,-1080.28693289,0.00011,2]
[340203653,1728837040403,-3361.07830627,0.00011,2]
[340203654,1728837040430,-288384.34221439,0.00011,2]
[340203655,1728837040488,-1182.8,0.00011,2]
[340203656,1728837040545,-639.64674,0.00011,2]
[340203657,1728837040557,-354.76611255,0.00011,2]
[340203658,1728837040567,-1615.981716,0.00011,2]
[340203678,1728837043261,-11017.7906506,0.00011,2]
[340203679,1728837043272,-5347.07954782,0.00011,2]
[340203680,1728837043283,-541.92539657,0.00011,2]
[340203681,1728837043294,-697.68583,0.00011,2]
[340203682,1728837043305,-720.02828238,0.00011,2]
[340203683,1728837043316,-502.49912,0.00011,2]
[340203684,1728837043326,-858.6849167,0.00011,2]
[340203685,1728837043338,-1169.35469898,0.00011,2]
[340203686,1728837043536,-1308.00000413,0.00011,2]
[340203687,1728837043547,-929.96123073,0.00011,2]
[340203698,1728837046298,-308.1,0.00010938,2]
[340203699,1728837046310,-250.3375,0.00010938,2]
[340203700,1728837046321,-6250.52796977,0.00010938,2]
[340203701,1728837046331,-21505.61610401,0.00010938,2]
[340203702,1728837046410,-19950.70301373,0.00010938,2]
[340203703,1728837046419,-9814.80617463,0.00011,2]
[340203704,1728837046465,-31822.2976061,0.00011,2]
[340203709,1728837120626,-575.69748729,0.00010467,2]
[340203710,1728837121745,-150.0,0.00010467,2]
[340203714,1728837225689,164.43,0.00010233,2]
[340203715,1728837226234,-164.43,0.00010244,2]
[340203716,1728837226428,-164.43,0.00010254,2]
[340203717,1728837262683,282.83,8.584e-05,2]
[340203718,1728837285882,270.01,0.00010104,2]
[340203720,1728837357784,250.0,0.00010051,2]
[340203724,1728837615119,1000.0,0.00010042,2]
[340203725,1728837624802,211.98,0.00010042,2]
[340203728,1728837866694,282.48,8.219e-05,2]
[340203729,1728837887101,530.12,9.921e-05,2]
[340203730,1728837888116,1251.0,0.00010164,2]
[340203732,1728837931545,23890.0,9.959e-05,2]
[340203733,1728837994849,550.0,0.0001,2]
[340203748,1728838016162,561.9,0.00010097,2]
[340203757,1728838138499,176.06,0.00010037,2]
[340203763,1728838167348,200.0,0.00010017,2]
[340203770,1728838232299,-222.58899851,0.00010246,2]
[340203771,1728838232308,-164.43,0.00010264,2]
[340203772,1728838232317,-164.43,0.00010274,2]
[340203773,1728838232327,-1786.308,0.00010282,2]
[340203774,1728838232336,-164.43,0.00010285,2]
[340203775,1728838232344,-282.48,0.00010474,2]
[340203776,1728838232353,-918.0,0.00010781,2]
[340203777,1728838232362,-1460.68498555,0.00010786,2]
[340203778,1728838232371,-1500.0,0.00010798,2]
[340203779,1728838232380,-299.99,0.00010798,2]
[340203780,1728838232389,-150.0,0.00010799,2]
[340203781,1728838232398,-150.0,0.000108,2]
[340203782,1728838232406,-424.09,0.000108,2]
[340203783,1728838232415,-718.0,0.000108,2]
[340203784,1728838232424,-161.26,0.000108,2]
[340203785,1728838232438,-150.0,0.000108,2]
[340203786,1728838232447,-359.17,0.000108,2]
[340203787,1728838232456,-150.0,0.000108,2]
[340203788,1728838232465,-150.0,0.000108,2]
[340203789,1728838232474,-755.66,0.000108,2]
[340203790,1728838232483,-755.4,0.000108,2]
[340203791,1728838232493,-150.0,0.000108,2]
[340203792,1728838232502,-150.0,0.000108,2]
[340203793,1728838232511,-150.0,0.000108,2]
[340203794,1728838232520,-359.17,0.000108,2]
[340203795,1728838232530,-424.09,0.000108,2]
[340203796,1728838232539,-150.0,0.000108,2]
[340203797,1728838232548,-151.37,0.000108,2]
[340203798,1728838232557,-429.55,0.000108,2]
[340203799,1728838232566,-150.0,0.000108,2]
[340203800,1728838232575,-755.74,0.000108,2]
[340203801,1728838232584,-499.99,0.000108,2]
[340203802,1728838232594,-150.0,0.00010834,2]
[340203803,1728838232603,-24493.58273633,0.0001089,2]
[340203804,1728838232612,-433.2501,0.000109,2]
[340203805,1728838232622,-1682.2527,0.000109,2]
[340203806,1728838232631,-5207.528,0.000109,2]
[340203807,1728838232640,-1474.6495,0.000109,2]
[340203808,1728838232649,-2500.0,0.000109,2]
[340203809,1728838232659,-177.136,0.000109,2]
[340203810,1728838232668,-150.0,0.000109,2]
[340203811,1728838232678,-330.9,0.000109,2]
[340203812,1728838232688,-150.0,0.000109,2]
[340203813,1728838232697,-150.0,0.000109,2]
[340203815,1728838232706,-150.0,0.000109,2]
[340203817,1728838232716,-150.0,0.000109,2]
[340203819,1728838232725,-150.0,0.000109,2]
[340203821,1728838232736,-429.0,0.000109,2]
[340203823,1728838232746,-359.17,0.000109,2]
[340203825,1728838232755,-150.0,0.000109,2]
[340203827,1728838232764,-424.09,0.000109,2]
[340203829,1728838232773,-155.14,0.000109,2]
[340203831,1728838232782,-755.74,0.000109,2]
[340203833,1728838232791,-7500.0,0.000109,2]
[340203834,1728838232800,-3191.82303568,0.000109,2]
[340203836,1728838232810,-1000.0,0.00010945,2]
[340203838,1728838232819,-1000.0,0.00010945,2]
[340203840,1728838232828,-1000.0,0.00010945,2]
[340203842,1728838232836,-1000.0,0.00010945,2]
[340203844,1728838232846,-1000.0,0.00010945,2]
[340203846,1728838232855,-1000.0,0.00010945,2]
[340203848,1728838232863,-1000.0,0.00010945,2]
[340203850,1728838232872,-1000.0,0.00010945,2]
[340203851,1728838232881,-1000.0,0.00010945,2]
[340203852,1728838232890,-608.2078,0.00010945,2]
[340203853,1728838232899,-336.85,0.00010959,2]
[340203854,1728838232907,-157.45,0.00010959,2]
[340203855,1728838232916,-250.0,0.00010959,2]
[340203856,1728838232926,-150.0,0.00010959,2]
[340203857,1728838232936,-159.73,0.00010959,2]
[340203858,1728838232945,-447.87,0.00010959,2]
[340203859,1728838232954,-207.98,0.00010959,2]
[340203860,1728838232963,-500.0,0.00010973,2]
[340203861,1728838232972,-203.48768929,0.00010973,2]
[340203862,1728838232981,-500.0,0.00010973,2]
[340203863,1728838232990,-166.15,0.00010973,2]
[340203864,1728838232999,-187.5332026,0.0001099,2]
[340203865,1728838233008,-187.5332026,0.0001099,2]
[340203866,1728838233017,-605.71729313,0.00010999,2]
[340203867,1728838233026,-152.11531837,0.00010999,2]
[340203868,1728838233035,-500.0,0.00010999,2]
[340203869,1728838233045,-635.79404351,0.00010999,2]
[340203870,1728838233054,-500.0,0.00010999,2]
[340203871,1728838233064,-500.68734814,0.00010999,2]
[340203872,1728838233073,-505.21189894,0.00010999,2]
[340203873,1728838233083,-500.0,0.00010999,2]
[340203874,1728838233092,-500.0,0.00010999,2]
[340203875,1728838233101,-250.0,0.00010999,2]
[340203876,1728838233111,-198.1744672,0.00010999,2]
[340203877,1728838233120,-500.0,0.00010999,2]
[340203878,1728838233130,-500.0,0.00010999,2]
[340203879,1728838233139,-500.0,0.00010999,2]
[340203880,1728838233149,-500.0,0.00010999,2]
[340203881,1728838233158,-500.0,0.00010999,2]
[340203882,1728838233168,-622.49357166,0.00010999,2]
[340203883,1728838233178,-500.0,0.00010999,2]
[340203884,1728838233187,-500.0,0.00010999,2]
[340203885,1728838233197,-500.0,0.00010999,2]
[340203886,1728838233207,-500.0,0.00010999,2]
[340203887,1728838233217,-500.0,0.00010999,2]
[340203888,1728838233226,-119383.21881398,0.00011,2]
[340203889,1728838233235,-337011.64394192,0.00011,2]
[340203890,1728838233247,-934.17092705,0.00011,2]
[340203891,1728838233259,-548.6778876,0.00011,2]
[340203892,1728838233270,-300.75376989,0.00011,2]
[340203893,1728838233281,-980.23063339,0.00011,2]
[340203894,1728838233293,-5599.02414876,0.00011,2]
[340203895,1728838233304,-3576.97871244,0.00011,2]
[340203896,1728838233315,-4477.92071747,0.00011,2]
[340203897,1728838233330,-1182.73708964,0.00011,2]
[340203898,1728838233342,-590454.49145441,0.00011,2]
[340203899,1728838233353,-527981.49347122,0.00011,2]
[340203900,1728838233364,-603.03497768,0.00011,2]
[340203901,1728838233375,-320.2596,0.00011,2]
[340203902,1728838233423,-764.0,0.00011,2]
[340203903,1728838233436,-5673.50863488,0.00011,2]
[340203904,1728838233447,-630.08,0.00011,2]
[340203905,1728838233459,-777.95581629,0.00011,2]
[340203906,1728838233470,-765.29022052,0.00011,2]
[340203907,1728838233481,-766.81290555,0.00011,2]
[340203908,1728838233493,-1023.36525247,0.00011,2]
[340203909,1728838233504,-992.20371602,0.00011,2]
[340203910,1728838233515,-470.63449296,0.00011,2]
[340203911,1728838233526,-5653.0,0.00011,2]
[340203912,1728838233545,-1091.26357004,0.00011,2]
[340203913,1728838233556,-2135.8388,0.00011,2]